[Event "Internationales Werder Bremen IM-Turnier"]
[Site "SV Werder Bremen, Clubräume in der Hemelinger Straße 17, Germany"]
[Date "2018.06.17"]
[Round "2.4"]
[White "Osmanodja, Filiz"]
[Black "Wachinger, Nikolas"]
[Result "0-1"]
[TimeControl "90 Minuten/40 Züge + 30 Minuten/Rest + 30 Sekunden ab dem ersten Zug"]
[WhiteTitle "WIM"]
[WhiteFideId "24633569"]
[BlackFideId "12962791"]
[WhiteElo "2352"]
[BlackElo "2292"]

1. e4 {[%clk 01:30:58]} {[%emt 00:00:02]} c5 {[%clk 01:30:52]} {[%emt
00:00:08]} 2. Nf3 {[%clk 01:31:26]} {[%emt 00:00:02]} a6 {[%clk 01:31:14]}
{[%emt 00:00:08]} 3. Nc3 {[%clk 01:31:51]} {[%emt 00:00:05]} e6 {[%clk
01:31:36]} {[%emt 00:00:07]} 4. d4 {[%clk 01:32:17]} {[%emt 00:00:04]} cxd4
{[%clk 01:32:00]} {[%emt 00:00:06]} 5. Nxd4 {[%clk 01:32:45]} {[%emt 00:00:03]}
b5 {[%clk 01:32:20]} {[%emt 00:00:09]} 6. Bd3 {[%clk 01:31:59]} {[%emt
00:01:15]} d6 {[%clk 01:32:39]} {[%emt 00:00:11]} 7. O-O {[%clk 01:30:55]}
{[%emt 00:01:35]} Nf6 {[%clk 01:32:52]} {[%emt 00:00:17]} 8. a4 {[%clk
01:30:05]} {[%emt 00:01:22]} b4 {[%clk 01:33:13]} {[%emt 00:00:09]} 9. Na2
{[%clk 01:30:07]} {[%emt 00:00:28]} e5 {[%clk 01:33:33]} {[%emt 00:00:09]} 10.
Nb3 {[%clk 01:27:47]} {[%emt 00:02:50]} Nc6 {[%clk 01:33:33]} {[%emt 00:00:29]}
11. c3 {[%clk 01:26:57]} {[%emt 00:01:20]} bxc3 {[%clk 01:28:43]} {[%emt
00:05:20]} 12. Nxc3 {[%clk 01:24:09]} {[%emt 00:03:18]} Be6 {[%clk 01:19:32]}
{[%emt 00:09:40]} 13. Bg5 {[%clk 01:16:55]} {[%emt 00:07:45]} Be7 {[%clk
01:18:04]} {[%emt 00:01:58]} 14. Nd2 {[%clk 00:56:27]} {[%emt 00:20:58]} O-O
{[%clk 01:11:35]} {[%emt 00:06:58]} 15. Bxf6 {[%clk 00:52:04]} {[%emt
00:04:54]} Bxf6 {[%clk 01:11:45]} {[%emt 00:00:19]} 16. Bc4 {[%clk 00:45:54]}
{[%emt 00:06:40]} Nd4 {[%clk 01:03:49]} {[%emt 00:08:25]} 17. Nd5 {[%clk
00:42:25]} {[%emt 00:03:59]} Bg5 {[%clk 01:01:09]} {[%emt 00:03:11]} 18. a5
{[%clk 00:32:09]} {[%emt 00:10:46]} Rb8 {[%clk 00:50:15]} {[%emt 00:11:24]} 19.
Ra2 {[%clk 00:24:42]} {[%emt 00:07:57]} Qc8 {[%clk 00:39:40]} {[%emt 00:11:04]}
20. b3 {[%clk 00:13:14]} {[%emt 00:11:59]} Bxd5 {[%clk 00:27:23]} {[%emt
00:12:47]} 21. Bxd5 {[%clk 00:13:14]} {[%emt 00:00:30]} Bxd2 {[%clk 00:27:30]}
{[%emt 00:00:22]} 22. Qxd2 {[%clk 00:11:46]} {[%emt 00:01:58]} Qc5 {[%clk
00:27:48]} {[%emt 00:00:12]} 23. Qd3 {[%clk 00:10:15]} {[%emt 00:02:01]} Rb5
{[%clk 00:21:55]} {[%emt 00:06:23]} 24. Rfa1 {[%clk 00:08:49]} {[%emt
00:01:56]} Rfb8 {[%clk 00:07:13]} {[%emt 00:15:12]} 25. Bc4 {[%clk 00:08:39]}
{[%emt 00:00:41]} Rb4 {[%clk 00:05:14]} {[%emt 00:02:29]} 26. Rc1 {[%clk
00:05:57]} {[%emt 00:03:12]} Nxb3 {[%clk 00:01:05]} {[%emt 00:04:39]} 27. Bxf7+
{[%clk 00:06:02]} {[%emt 00:00:25]} Kh8 {[%clk 00:01:15]} {[%emt 00:00:19]} 28.
Rd1 {[%clk 00:02:37]} {[%emt 00:03:54]} Nc1 {[%clk 00:00:46]} {[%emt 00:00:59]}
29. Qxa6 {[%clk 00:01:46]} {[%emt 00:01:21]} Nxa2 {[%clk 00:00:56]} {[%emt
00:00:21]} 30. Bxa2 {[%clk 00:02:14]} {[%emt 00:00:02]} Rb2 {[%clk 00:01:05]}
{[%emt 00:00:21]} 0-1

[Event "Internationales Werder Bremen IM-Turnier"]
[Site "SV Werder Bremen, Clubräume in der Hemelinger Straße 17, Germany"]
[Date "2018.06.17"]
[Round "2.2"]
[White "Ahlander, Björn"]
[Black "Grabarczyk, Miroslav"]
[Result "1/2-1/2"]
[TimeControl "90 Minuten/40 Züge + 30 Minuten/Rest + 30 Sekunden ab dem ersten Zug"]
[WhiteTitle "IM"]
[BlackTitle "GM"]
[WhiteFideId "1700251"]
[BlackFideId "1101684"]
[WhiteElo "2435"]
[BlackElo "2402"]

1. d4 {[%clk 01:30:56]} {[%emt 00:00:03]} d5 {[%clk 01:30:45]} {[%emt
00:00:14]} 2. c4 {[%clk 01:31:12]} {[%emt 00:00:15]} e6 {[%clk 01:30:58]}
{[%emt 00:00:17]} 3. Nc3 {[%clk 01:31:30]} {[%emt 00:00:12]} Nf6 {[%clk
01:31:07]} {[%emt 00:00:20]} 4. cxd5 {[%clk 01:31:04]} {[%emt 00:00:57]} exd5
{[%clk 01:31:16]} {[%emt 00:00:21]} 5. Bg5 {[%clk 01:31:25]} {[%emt 00:00:09]}
c6 {[%clk 01:30:57]} {[%emt 00:00:49]} 6. e3 {[%clk 01:31:13]} {[%emt
00:00:42]} Bf5 {[%clk 01:31:02]} {[%emt 00:00:25]} 7. Qf3 {[%clk 01:31:08]}
{[%emt 00:00:35]} Bg6 {[%clk 01:31:13]} {[%emt 00:00:19]} 8. Bxf6 {[%clk
01:31:31]} {[%emt 00:00:08]} Qxf6 {[%clk 01:31:37]} {[%emt 00:00:06]} 9. Qxf6
{[%clk 01:31:54]} {[%emt 00:00:07]} gxf6 {[%clk 01:31:59]} {[%emt 00:00:07]} 10.
Nf3 {[%clk 01:30:47]} {[%emt 00:01:37]} Nd7 {[%clk 01:29:26]} {[%emt 00:03:03]}
11. Nh4 {[%clk 01:30:30]} {[%emt 00:00:47]} Be7 {[%clk 01:28:14]} {[%emt
00:01:42]} 12. Ne2 {[%clk 01:29:33]} {[%emt 00:01:27]} f5 {[%clk 01:24:39]}
{[%emt 00:04:04]} 13. g3 {[%clk 01:28:05]} {[%emt 00:01:58]} Nf8 {[%clk
01:22:41]} {[%emt 00:02:29]} 14. Ng2 {[%clk 01:27:14]} {[%emt 00:01:21]} h5
{[%clk 01:19:00]} {[%emt 00:04:11]} 15. h4 {[%clk 01:26:02]} {[%emt 00:01:42]}
Nd7 {[%clk 01:17:46]} {[%emt 00:01:44]} 16. Ngf4 {[%clk 01:25:44]} {[%emt
00:00:48]} Nf6 {[%clk 01:18:04]} {[%emt 00:00:11]} 17. Nd3 {[%clk 01:22:59]}
{[%emt 00:03:15]} a5 {[%clk 01:17:56]} {[%emt 00:00:38]} 18. Nef4 {[%clk
01:23:04]} {[%emt 00:00:25]} Bd6 {[%clk 01:12:40]} {[%emt 00:05:46]} 19. Be2
{[%clk 01:18:50]} {[%emt 00:04:45]} Ke7 {[%clk 01:12:01]} {[%emt 00:01:08]} 20.
f3 {[%clk 01:08:54]} {[%emt 00:10:27]} Nd7 {[%clk 01:08:16]} {[%emt 00:04:15]}
21. Kf2 {[%clk 01:01:35]} {[%emt 00:07:49]} Kf6 {[%clk 01:06:07]} {[%emt
00:02:38]} 22. Rhc1 {[%clk 00:56:39]} {[%emt 00:05:26]} Ra7 {[%clk 01:05:27]}
{[%emt 00:01:10]} 23. a4 {[%clk 00:55:25]} {[%emt 00:01:44]} Re8 {[%clk
01:02:43]} {[%emt 00:03:13]} 1/2-1/2

[Event "Internationales Werder Bremen IM-Turnier"]
[Site "SV Werder Bremen, Clubräume in der Hemelinger Straße 17, Germany"]
[Date "2018.06.17"]
[Round "2.5"]
[White "Molchanov, Oleksii"]
[Black "Kardoeus, David"]
[Result "1-0"]
[TimeControl "90 Minuten/40 Züge + 30 Minuten/Rest + 30 Sekunden ab dem ersten Zug"]
[WhiteTitle "FM"]
[WhiteFideId "14119820"]
[BlackFideId "12912050"]
[WhiteElo "2350"]
[BlackElo "2226"]

1. c4 {[%clk 01:30:51]} {[%emt 00:00:07]} Nf6 {[%clk 01:30:52]} {[%emt
00:00:08]} 2. g3 {[%clk 01:30:34]} {[%emt 00:00:47]} g6 {[%clk 01:31:13]}
{[%emt 00:00:10]} 3. Bg2 {[%clk 01:30:57]} {[%emt 00:00:06]} Bg7 {[%clk
01:31:34]} {[%emt 00:00:08]} 4. Nc3 {[%clk 01:31:03]} {[%emt 00:00:24]} d6
{[%clk 01:30:52]} {[%emt 00:01:12]} 5. e4 {[%clk 01:30:45]} {[%emt 00:00:49]}
e5 {[%clk 01:28:10]} {[%emt 00:03:12]} 6. Nge2 {[%clk 01:30:44]} {[%emt
00:00:30]} c5 {[%clk 01:26:54]} {[%emt 00:01:47]} 7. d3 {[%clk 01:29:35]}
{[%emt 00:01:38]} Nc6 {[%clk 01:26:34]} {[%emt 00:00:51]} 8. O-O {[%clk
01:27:24]} {[%emt 00:02:41]} O-O {[%clk 01:24:12]} {[%emt 00:02:52]} 9. a3
{[%clk 01:25:09]} {[%emt 00:02:45]} Bd7 {[%clk 01:15:34]} {[%emt 00:09:08]} 10.
Rb1 {[%clk 01:22:47]} {[%emt 00:02:51]} Nd4 {[%clk 01:05:47]} {[%emt 00:10:18]}
11. b4 {[%clk 01:17:45]} {[%emt 00:05:32]} b6 {[%clk 01:03:52]} {[%emt
00:02:25]} 12. h3 {[%clk 01:11:36]} {[%emt 00:06:39]} Nh5 {[%clk 00:42:03]}
{[%emt 00:22:19]} 13. Kh2 {[%clk 00:59:29]} {[%emt 00:12:36]} Rc8 {[%clk
00:41:53]} {[%emt 00:00:41]} 14. Nd5 {[%clk 00:58:59]} {[%emt 00:01:01]} Qe8
{[%clk 00:40:41]} {[%emt 00:01:41]} 15. Nxd4 {[%clk 00:54:30]} {[%emt
00:04:59]} cxd4 {[%clk 00:39:40]} {[%emt 00:01:31]} 16. b5 {[%clk 00:49:31]}
{[%emt 00:05:29]} f5 {[%clk 00:34:29]} {[%emt 00:05:42]} 17. exf5 {[%clk
00:39:01]} {[%emt 00:10:59]} gxf5 {[%clk 00:34:40]} {[%emt 00:00:18]} 18. f4
{[%clk 00:32:34]} {[%emt 00:06:59]} Kh8 {[%clk 00:32:14]} {[%emt 00:02:56]} 19.
Bf3 {[%clk 00:25:59]} {[%emt 00:07:04]} Nf6 {[%clk 00:29:06]} {[%emt 00:03:38]}
20. Nxf6 {[%clk 00:25:43]} {[%emt 00:00:47]} Bxf6 {[%clk 00:27:34]} {[%emt
00:02:02]} 21. Qe2 {[%clk 00:23:17]} {[%emt 00:02:55]} e4 {[%clk 00:22:04]}
{[%emt 00:06:00]} 22. dxe4 {[%clk 00:22:08]} {[%emt 00:01:39]} fxe4 {[%clk
00:22:28]} {[%emt 00:00:05]} 23. Qxe4 {[%clk 00:19:53]} {[%emt 00:02:46]} Rxc4
{[%clk 00:22:06]} {[%emt 00:00:53]} 24. Bd2 {[%clk 00:19:17]} {[%emt 00:01:05]}
Bxb5 {[%clk 00:18:59]} {[%emt 00:03:37]} 25. Rfe1 {[%clk 00:18:03]} {[%emt
00:01:44]} Qxe4 {[%clk 00:18:15]} {[%emt 00:01:15]} 26. Bxe4 {[%clk 00:18:25]}
{[%emt 00:00:07]} Bd7 {[%clk 00:11:26]} {[%emt 00:07:20]} 27. Bb4 {[%clk
00:16:39]} {[%emt 00:02:16]} Ba4 {[%clk 00:08:15]} {[%emt 00:03:41]} 28. Rbc1
{[%clk 00:14:08]} {[%emt 00:03:01]} Rxc1 {[%clk 00:08:02]} {[%emt 00:00:42]} 29.
Rxc1 {[%clk 00:14:36]} {[%emt 00:00:02]} Re8 {[%clk 00:08:12]} {[%emt
00:00:21]} 30. Bd3 {[%clk 00:13:05]} {[%emt 00:02:00]} d5 {[%clk 00:07:07]}
{[%emt 00:01:36]} 31. g4 {[%clk 00:10:04]} {[%emt 00:03:30]} Be7 {[%clk
00:05:54]} {[%emt 00:01:43]} 32. Bd2 {[%clk 00:06:10]} {[%emt 00:04:24]} Bd6
{[%clk 00:04:38]} {[%emt 00:01:46]} 33. g5 {[%clk 00:06:20]} {[%emt 00:00:19]}
a6 {[%clk 00:03:15]} {[%emt 00:01:54]} 34. Kg3 {[%clk 00:04:29]} {[%emt
00:02:20]} b5 {[%clk 00:02:37]} {[%emt 00:01:09]} 35. Rc6 {[%clk 00:03:55]}
{[%emt 00:01:04]} Bxa3 {[%clk 00:02:44]} {[%emt 00:00:23]} 36. Rxa6 {[%clk
00:04:06]} {[%emt 00:00:20]} Bb2 {[%clk 00:02:42]} {[%emt 00:00:32]} 37. f5
{[%clk 00:04:08]} {[%emt 00:00:28]} Bc3 {[%clk 00:02:47]} {[%emt 00:00:24]} 38.
Bf4 {[%clk 00:04:03]} {[%emt 00:00:35]} Be1+ {[%clk 00:02:53]} {[%emt
00:00:25]} 39. Kg2 {[%clk 00:04:08]} {[%emt 00:00:24]} Kg8 {[%clk 00:01:16]}
{[%emt 00:02:07]} 40. f6 {[%clk 00:03:46]} {[%emt 00:00:52]} Bc2 {[%clk
00:00:47]} {[%emt 00:00:59]} 41. Bxc2 {[%clk 00:29:27]} {[%emt 00:04:49]} 1-0

[Event "Internationales Werder Bremen IM-Turnier"]
[Site "SV Werder Bremen, Clubräume in der Hemelinger Straße 17, Germany"]
[Date "2018.06.17"]
[Round "2.1"]
[White "Grigorian, Spartak"]
[Black "Skliarov, Viktor"]
[Result "1/2-1/2"]
[TimeControl "90 Minuten/40 Züge + 30 Minuten/Rest + 30 Sekunden ab dem ersten Zug"]
[BlackTitle "IM"]
[WhiteFideId "24661490"]
[BlackFideId "14106736"]
[WhiteElo "2359"]
[BlackElo "2359"]

1. e4 {[%clk 01:30:57]} {[%emt 00:00:01]} c5 {[%clk 01:30:43]} {[%emt
00:00:18]} 2. Nc3 {[%clk 01:31:04]} {[%emt 00:00:24]} Nc6 {[%clk 01:30:59]}
{[%emt 00:00:14]} 3. Bb5 {[%clk 01:31:12]} {[%emt 00:00:22]} Nd4 {[%clk
01:31:11]} {[%emt 00:00:18]} 4. Bc4 {[%clk 01:31:07]} {[%emt 00:00:35]} g6
{[%clk 01:31:33]} {[%emt 00:00:07]} 5. Nf3 {[%clk 01:31:15]} {[%emt 00:00:21]}
Bg7 {[%clk 01:31:57]} {[%emt 00:00:06]} 6. Nxd4 {[%clk 01:31:12]} {[%emt
00:00:34]} cxd4 {[%clk 01:32:21]} {[%emt 00:00:06]} 7. Qf3 {[%clk 01:31:38]}
{[%emt 00:00:04]} Nh6 {[%clk 01:32:44]} {[%emt 00:00:07]} 8. Ne2 {[%clk
01:31:58]} {[%emt 00:00:10]} O-O {[%clk 01:32:58]} {[%emt 00:00:15]} 9. d3
{[%clk 01:31:53]} {[%emt 00:00:34]} Ng4 {[%clk 01:31:42]} {[%emt 00:01:47]} 10.
Bb3 {[%clk 01:31:41]} {[%emt 00:00:42]} d6 {[%clk 01:30:05]} {[%emt 00:02:07]}
11. Qg3 {[%clk 01:31:23]} {[%emt 00:00:48]} a5 {[%clk 01:28:32]} {[%emt
00:02:03]} 12. a4 {[%clk 01:30:59]} {[%emt 00:00:53]} Qb6 {[%clk 01:22:39]}
{[%emt 00:06:22]} 13. h4 {[%clk 01:29:46]} {[%emt 00:01:44]} h5 {[%clk
01:19:10]} {[%emt 00:03:58]} 14. f3 {[%clk 01:29:01]} {[%emt 00:01:15]} Ne5
{[%clk 01:11:41]} {[%emt 00:08:00]} 15. Nf4 {[%clk 01:28:57]} {[%emt 00:00:34]}
e6 {[%clk 01:10:10]} {[%emt 00:02:00]} 16. O-O {[%clk 01:27:05]} {[%emt
00:02:22]} Bd7 {[%clk 01:09:06]} {[%emt 00:01:34]} 17. Qh3 {[%clk 01:27:19]}
{[%emt 00:00:16]} Bh6 {[%clk 00:41:45]} {[%emt 00:27:52]} 18. g4 {[%clk
01:27:07]} {[%emt 00:00:42]} Bxf4 {[%clk 00:40:49]} {[%emt 00:01:26]} 19. Bxf4
{[%clk 01:27:36]} {[%emt 00:00:02]} Nxd3 {[%clk 00:41:12]} {[%emt 00:00:07]} 20.
cxd3 {[%clk 01:28:04]} {[%emt 00:00:02]} e5 {[%clk 00:29:59]} {[%emt 00:11:43]}
21. Bc4 {[%clk 01:28:09]} {[%emt 00:00:25]} exf4 {[%clk 00:30:09]} {[%emt
00:00:19]} 22. Qh2 {[%clk 01:28:37]} {[%emt 00:00:02]} Qd8 {[%clk 00:25:53]}
{[%emt 00:04:47]} 23. gxh5 {[%clk 01:06:04]} {[%emt 00:23:02]} Kg7 {[%clk
00:21:46]} {[%emt 00:04:37]} 24. Qxf4 {[%clk 01:05:23]} {[%emt 00:01:11]} Qe7
{[%clk 00:21:41]} {[%emt 00:00:34]} 25. Rf2 {[%clk 00:26:27]} {[%emt 00:39:27]}
Rh8 {[%clk 00:21:24]} {[%emt 00:00:45]} 26. hxg6 {[%clk 00:26:24]} {[%emt
00:00:34]} fxg6 {[%clk 00:21:08]} {[%emt 00:00:46]} 27. Qg5 {[%clk 00:26:17]}
{[%emt 00:00:37]} Qxg5+ {[%clk 00:17:50]} {[%emt 00:03:49]} 28. hxg5 {[%clk
00:26:46]} {[%emt 00:00:01]} Rh5 {[%clk 00:18:12]} {[%emt 00:00:07]} 29. Rg2
{[%clk 00:25:43]} {[%emt 00:01:32]} Rf8 {[%clk 00:15:56]} {[%emt 00:02:46]} 30.
Rg3 {[%clk 00:24:37]} {[%emt 00:01:37]} Rfh8 {[%clk 00:15:48]} {[%emt
00:00:37]} 31. Kf2 {[%clk 00:24:19]} {[%emt 00:00:49]} Rh2+ {[%clk 00:16:11]}
{[%emt 00:00:07]} 32. Rg2 {[%clk 00:24:41]} {[%emt 00:00:07]} R2h3 {[%clk
00:16:22]} {[%emt 00:00:19]} 33. Ke2 {[%clk 00:02:49]} {[%emt 00:22:23]} Rh2
{[%clk 00:16:19]} {[%emt 00:00:32]} 34. Kf2 {[%clk 00:03:17]} {[%emt 00:00:01]}
R2h3 {[%clk 00:15:34]} {[%emt 00:01:16]} 35. Rc1 {[%clk 00:03:08]} {[%emt
00:00:39]} Rf8 {[%clk 00:14:49]} {[%emt 00:01:14]} 36. Rg3 {[%clk 00:03:30]}
{[%emt 00:00:08]} Rh2+ {[%clk 00:15:07]} {[%emt 00:00:13]} 37. Rg2 {[%clk
00:03:57]} {[%emt 00:00:03]} Rh3 {[%clk 00:15:20]} {[%emt 00:00:16]} 38. Rg3
{[%clk 00:03:17]} {[%emt 00:01:10]} Rh2+ {[%clk 00:15:44]} {[%emt 00:00:06]} 39.
Rg2 {[%clk 00:03:45]} {[%emt 00:00:02]} Rh3 {[%clk 00:16:08]} {[%emt 00:00:07]}
1/2-1/2


[ePGN "0.1;DGT LiveChess/2.1"]

[Event "Internationales Werder Bremen IM-Turnier"]
[Site "SV Werder Bremen, Clubräume in der Hemelinger Straße 17, Germany"]
[Date "2018.06.18"]
[Round "3.5"]
[White "Skliarov, Viktor"]
[Black "Ahlander, Björn"]
[Result "1-0"]
[TimeControl "90 Minuten/40 Züge + 30 Minuten/Rest + 30 Sekunden ab dem ersten Zug"]
[WhiteTitle "IM"]
[BlackTitle "IM"]
[WhiteFideId "14106736"]
[BlackFideId "1700251"]
[WhiteElo "2359"]
[BlackElo "2435"]

1. e4 {[%clk 01:30:56]} {[%emt 00:00:02]} c5 {[%clk 01:30:53]} {[%emt
00:00:07]} 2. Nf3 {[%clk 01:31:19]} {[%emt 00:00:07]} d6 {[%clk 01:31:04]}
{[%emt 00:00:19]} 3. d4 {[%clk 01:31:42]} {[%emt 00:00:08]} cxd4 {[%clk
01:31:29]} {[%emt 00:00:05]} 4. Qxd4 {[%clk 01:32:06]} {[%emt 00:00:05]} Nc6
{[%clk 01:31:14]} {[%emt 00:00:45]} 5. Bb5 {[%clk 01:32:29]} {[%emt 00:00:07]}
Bd7 {[%clk 01:31:38]} {[%emt 00:00:07]} 6. Bxc6 {[%clk 01:32:53]} {[%emt
00:00:06]} Bxc6 {[%clk 01:32:01]} {[%emt 00:00:07]} 7. Nc3 {[%clk 01:33:18]}
{[%emt 00:00:06]} e5 {[%clk 01:31:24]} {[%emt 00:01:07]} 8. Qc4 {[%clk
01:31:12]} {[%emt 00:02:37]} h6 {[%clk 01:26:11]} {[%emt 00:05:42]} 9. O-O
{[%clk 01:26:55]} {[%emt 00:04:47]} Nf6 {[%clk 01:25:40]} {[%emt 00:01:01]} 10.
Rd1 {[%clk 01:26:24]} {[%emt 00:01:01]} Qc8 {[%clk 01:20:31]} {[%emt 00:05:40]}
11. b3 {[%clk 01:22:26]} {[%emt 00:04:29]} Qe6 {[%clk 01:16:49]} {[%emt
00:04:12]} 12. Nd5 {[%clk 00:48:05]} {[%emt 00:34:50]} Bxd5 {[%clk 01:05:22]}
{[%emt 00:11:56]} 13. exd5 {[%clk 00:48:29]} {[%emt 00:00:07]} Qd7 {[%clk
01:05:11]} {[%emt 00:00:40]} 14. Qe2 {[%clk 00:45:41]} {[%emt 00:03:17]} Be7
{[%clk 01:04:51]} {[%emt 00:00:51]} 15. c4 {[%clk 00:46:04]} {[%emt 00:00:07]}
O-O {[%clk 01:04:11]} {[%emt 00:01:10]} 16. Bb2 {[%clk 00:45:13]} {[%emt
00:01:21]} Rae8 {[%clk 00:59:34]} {[%emt 00:05:08]} 17. Rac1 {[%clk 00:41:20]}
{[%emt 00:04:23]} Bd8 {[%clk 00:54:09]} {[%emt 00:05:55]} 18. b4 {[%clk
00:37:03]} {[%emt 00:04:47]} Nh5 {[%clk 00:40:57]} {[%emt 00:13:41]} 19. Nd2
{[%clk 00:28:54]} {[%emt 00:08:40]} Nf4 {[%clk 00:40:31]} {[%emt 00:00:55]} 20.
Qf3 {[%clk 00:28:31]} {[%emt 00:00:53]} f5 {[%clk 00:39:24]} {[%emt 00:01:38]}
21. c5 {[%clk 00:20:55]} {[%emt 00:08:07]} Bg5 {[%clk 00:32:20]} {[%emt
00:07:34]} 22. c6 {[%clk 00:20:09]} {[%emt 00:01:16]} Qe7 {[%clk 00:26:09]}
{[%emt 00:06:40]} 23. Rc2 {[%clk 00:12:44]} {[%emt 00:07:55]} e4 {[%clk
00:24:33]} {[%emt 00:02:06]} 24. Qb3 {[%clk 00:13:11]} {[%emt 00:00:04]} Qf7
{[%clk 00:16:58]} {[%emt 00:08:05]} 25. Nf1 {[%clk 00:10:27]} {[%emt 00:03:14]}
Bf6 {[%clk 00:10:06]} {[%emt 00:07:21]} 26. Bxf6 {[%clk 00:06:56]} {[%emt
00:04:02]} Qxf6 {[%clk 00:10:33]} {[%emt 00:00:03]} 27. Qe3 {[%clk 00:07:18]}
{[%emt 00:00:08]} Qg5 {[%clk 00:07:47]} {[%emt 00:03:15]} 28. Qg3 {[%clk
00:07:02]} {[%emt 00:00:46]} Qxg3 {[%clk 00:04:53]} {[%emt 00:03:25]} 29. hxg3
{[%clk 00:06:47]} {[%emt 00:00:45]} Nd3 {[%clk 00:05:20]} {[%emt 00:00:02]} 30.
cxb7 {[%clk 00:05:03]} {[%emt 00:02:15]} Re7 {[%clk 00:04:48]} {[%emt
00:01:02]} 31. a3 {[%clk 00:04:19]} {[%emt 00:01:15]} Rxb7 {[%clk 00:05:07]}
{[%emt 00:00:11]} 32. Rc6 {[%clk 00:04:31]} {[%emt 00:00:17]} Rb6 {[%clk
00:04:40]} {[%emt 00:00:58]} 33. Ne3 {[%clk 00:03:42]} {[%emt 00:01:19]} Ne5
{[%clk 00:03:18]} {[%emt 00:01:52]} 34. Rxb6 {[%clk 00:02:18]} {[%emt
00:01:55]} axb6 {[%clk 00:03:46]} {[%emt 00:00:02]} 35. a4 {[%clk 00:02:42]}
{[%emt 00:00:05]} g5 {[%clk 00:02:36]} {[%emt 00:01:39]} 36. a5 {[%clk
00:01:51]} {[%emt 00:01:23]} f4 {[%clk 00:03:04]} {[%emt 00:00:02]} 37. gxf4
{[%clk 00:02:16]} {[%emt 00:00:05]} gxf4 {[%clk 00:03:31]} {[%emt 00:00:02]} 38.
Nf1 {[%clk 00:02:31]} {[%emt 00:00:15]} Nd3 {[%clk 00:03:44]} {[%emt 00:00:17]}
39. axb6 {[%clk 00:02:18]} {[%emt 00:00:43]} Rb8 {[%clk 00:03:16]} {[%emt
00:00:57]} 40. f3 {[%clk 00:01:33]} {[%emt 00:01:15]} Rxb6 {[%clk 00:02:08]}
{[%emt 00:01:39]} 41. fxe4 {[%clk 00:01:59]} {[%emt 00:00:05]} Nxb4 {[%clk
00:00:32]} {[%emt 00:02:06]} 42. Kf2 {[%clk 00:01:30]} {[%emt 00:00:58]} Rb8
{[%clk 00:25:03]} {[%emt 00:05:55]} 43. Kf3 {[%clk 00:30:37]} {[%emt 00:01:27]}
Rf8 {[%clk 00:24:47]} {[%emt 00:00:47]} 44. Nd2 {[%clk 00:22:43]} {[%emt
00:08:24]} Nd3 {[%clk 00:13:20]} {[%emt 00:11:56]} 45. Nc4 {[%clk 00:23:05]}
{[%emt 00:00:09]} Ne5+ {[%clk 00:12:50]} {[%emt 00:01:00]} 46. Nxe5 {[%clk
00:23:30]} {[%emt 00:00:05]} dxe5 {[%clk 00:13:18]} {[%emt 00:00:02]} 47. Kg4
{[%clk 00:22:18]} {[%emt 00:01:41]} Kg7 {[%clk 00:12:01]} {[%emt 00:01:47]} 48.
d6 {[%clk 00:21:27]} {[%emt 00:01:21]} Kf6 {[%clk 00:10:34]} {[%emt 00:01:56]}
49. d7 {[%clk 00:21:48]} {[%emt 00:00:10]} h5+ {[%clk 00:06:03]} {[%emt
00:05:01]} 50. Kxh5 {[%clk 00:21:44]} {[%emt 00:00:33]} Rh8 {[%clk 00:06:30]}
{[%emt 00:00:03]} 51. Kg4 {[%clk 00:22:08]} {[%emt 00:00:06]} Rg8+ {[%clk
00:06:54]} {[%emt 00:00:06]} 52. Kf3 {[%clk 00:22:08]} {[%emt 00:00:30]} Rd8
{[%clk 00:07:20]} {[%emt 00:00:04]} 53. Rd5 {[%clk 00:21:04]} {[%emt 00:01:34]}
Ke6 {[%clk 00:07:40]} {[%emt 00:00:10]} 54. Ke2 {[%clk 00:14:10]} {[%emt
00:07:24]} f3+ {[%clk 00:02:01]} {[%emt 00:06:09]} 55. Kxf3 {[%clk 00:14:33]}
{[%emt 00:00:06]} Kf6 {[%clk 00:02:03]} {[%emt 00:00:28]} 56. Ke3 {[%clk
00:14:50]} {[%emt 00:00:13]} Ke6 {[%clk 00:01:40]} {[%emt 00:00:53]} 57. Kd3
{[%clk 00:15:00]} {[%emt 00:00:19]} Kf6 {[%clk 00:02:00]} {[%emt 00:00:10]} 58.
Kc4 {[%clk 00:15:25]} {[%emt 00:00:05]} Kg5 {[%clk 00:02:16]} {[%emt 00:00:15]}
59. Rxe5+ {[%clk 00:15:46]} {[%emt 00:00:10]} Kf4 {[%clk 00:02:41]} {[%emt
00:00:04]} 60. Re7 {[%clk 00:16:05]} {[%emt 00:00:11]} 1-0